Cogmind - Beta 9.4 *** ADVENTURER MODE // 2020.08.11 @ 18:00:09 Player: Scyralis Result: Self-destructed Performance ------------- Evolutions (1) 500 Regions Visited (3) 600 Robots Destroyed (81) 405 Value Destroyed (1446) 1446 Prototype IDs (8) 160 Alien Tech Used (0) 0 Bonus (54) 54 TOTAL SCORE: 3165 Bonus ------- High Alert Combat Kills 54 Cogmind --------- Core Integrity 124/400 Matter 300/300 Energy 280/280 System Corruption 0% Temperature Cool (14) Movement Core (150) Ox2 Location -9/Storage Parts ------- > --- POWER (1) -------- Heavy Ion Engine > --- PROPULSION (2) --- (None) > --- UTILITY (4) ------ Visual Processing Unit > --- WEAPON (2) ------- (None) > --- INVENTORY (4) ---- Hacking Suite Peak State ------------ > --- POWER ------------ Heavy Ion Engine > --- PROPULSION ------- Improved Aluminum Leg Improved Aluminum Leg > --- UTILITY ---------- Heat Sink Large Battery Visual Processing Unit Reflective Plating > --- WEAPON ----------- Improved Medium Laser Improved Medium Laser > --- INVENTORY -------- (None) [Rating: 20] Favorites ----------- Power Heavy Ion Engine Engine Heavy Ion Engine Propulsion Improved Aluminum Leg Leg Improved Aluminum Leg Utility Visual Processing Unit Device Heat Sink Storage Large Battery Processor Visual Processing Unit Protection Light Armor Plating Weapon Advanced Beam Cannon Energy Gun Small Laser Energy Cannon Advanced Beam Cannon Build | -11 -10 -9 -9 ------- Run | Scr Mat Mat Sto Slots Evolved 2 | . . 2 . Power . | . . . . Propulsion . | . . . . Utility 2 | . . 2 . Weapon . | . . . . Parts Attached 38 | 5 3 28 2 Power 5 | 1 . 4 . Engine 5 | 1 . 4 . Core . | . . . . Reactor . | . . . . Propulsion 7 | 2 . 5 . Treads . | . . . . Leg 7 | 2 . 5 . Wheel . | . . . . Hover . | . . . . Flight . | . . . . Utility 9 | . 3 6 . Device 1 | . . 1 . Storage 2 | . 2 . . Processor 2 | . 1 1 . Hackware . | . . . . Protection 4 | . . 4 . Artifact . | . . . . Weapon 17 | 2 . 13 2 Energy Gun 13 | 2 . 9 2 Energy Cannon 4 | . . 4 . Ballistic Gun . | . . . . Ballistic Cannon . | . . . . Launcher . | . . . . Special Weapon . | . . . . Impact Weapon . | . . . . Slashing Weapon . | . . . . Piercing Weapon . | . . . . Special Melee Weapon . | . . . . Unidentified Prototypes 2 | . . 2 . Parts Lost 11 | . . 2 9 Power 1 | . . 1 . Propulsion 2 | . . . 2 Utility 3 | . . . 3 Weapon 5 | . . 1 4 Highest Loss Streak 9 | . . 1 9 Average Slot Usage (%) 88 | . 83 88 91 Engine 10 | . 14 10 11 Leg 22 | . 28 21 19 Device 4 | . . 4 11 Storage 10 | . 7 11 8 Processor 12 | . 4 13 11 Protection 6 | . . 6 9 Energy Gun 11 | . 28 7 18 Energy Cannon 9 | . . 13 . Naked Turns . | . . . . Heaviest Build 23 | 5 8 23 22 Greatest Support 26 | 20 20 26 26 Greatest Overweight (x) 1 | . . . 1 Average Overweight (x) . | . . . . Largest Inventory Capacity 4 | 4 4 4 4 Average Capacity 4 | 4 4 4 4 Most Carried 4 | 4 1 2 2 Average Carried . | . . . 1 Final Capacity 4 | 4 4 4 4 Final Carried 1 | . . 1 1 Class Distribution -------------------- 53% | Mutant 46% | Scavenger-Mutant Dominant Class ---------------- Mutant | -10/Materials Scavenger-Mutant | -9/Materials Mutant | -9/Storage Resources | -11 -10 -9 -9 ----------- Run | Scr Mat Mat Sto Matter Collected 554 | 250 20 284 . Remotely . | . . . . Salvage Created 2748 | 110 227 1766 645 Parts 192 | 7 22 118 45 Haulers Intercepted 6 | . . 5 1 Recyclers Shooed 6 | . 3 2 1 Parts Field Recycled . | . . . . Retrieved Matter . | . . . . Parts Self-Destructed . | . . . . Prevented . | . . . . Kills | -11 -10 -9 -9 ------- Run | Scr Mat Mat Sto Combat Hostiles Destroyed 45 | . 3 31 11 Guns 23 | . 3 9 11 Cannons 22 | . . 22 . Classes Destroyed 11 | 2 2 6 1 Worker 9 | . . 9 . Builder 4 | . . 3 1 Tunneler 2 | 1 1 . . Hauler 6 | . . 5 1 Recycler 7 | 1 2 2 2 Operator 1 | . . . 1 Watcher 7 | . 2 4 1 Swarmer 18 | . 3 13 2 Grunt 18 | . . 11 7 Duelist 2 | . . 2 . Sentry 7 | . . 5 2 Best Kill Streak 11 | 2 4 6 11 Combat Bots Only 9 | . 3 4 9 Max Kills in Single Turn 2 | 1 1 2 2 Gunslinging 1 | . . 1 . Exploded . | . . . . Melee . | . . . . Uniques/NPCs Destroyed . | . . . . Combat | -11 -10 -9 -9 -------- Run | Scr Mat Mat Sto Damage Taken 1586 | . 86 763 737 Core 286 | . 10 120 156 Absorbed by Shields . | . . . . Core Remaining (%) 98 | 100 96 . . Volleys Fired 172 | 6 18 108 40 Largest 2 | 2 2 2 2 Hottest 136 | 80 80 136 112 Shots Fired 296 | 12 36 186 62 Gun 173 | 12 36 63 62 Cannon 123 | . . 123 . Launcher . | . . . . Special . | . . . . Kinetic . | . . . . Thermal 296 | 12 36 186 62 Explosive . | . . . . Electromagnetic . | . . . . Robot Hit Streak 37 | 5 11 37 16 Robot Miss Streak 4 | 1 2 4 2 Penetration Max . | . . . . Secondary Targets 4 | . . 3 1 Max Gunslinging Chain 1 | . . 1 1 Shots Hit Robots 214 | 9 27 135 43 Core Hits 93 | 3 12 60 18 Critical Hits 10 | . . 10 . Critical Kills 6 | . . 6 . Critical Parts Destroyed 4 | . . 4 . Melee Attacks . | . . . . Impact . | . . . . Slashing . | . . . . Piercing . | . . . . Sneak Attacks . | . . . . Combat Hostiles . | . . . . Follow-up Attacks . | . . . . Damage Inflicted 3723 | 99 296 2610 718 Guns 1777 | 99 290 673 715 Cannons 1937 | . . 1937 . Explosions . | . . . . Melee . | . . . . Ramming 9 | . 6 . 3 Kinetic . | . . . . Thermal 3714 | 99 290 2610 715 Explosive . | . . . . Electromagnetic . | . . . . Impact . | . . . . Slashing . | . . . . Piercing . | . . . . Highest Corruption . | . . . . Average Corruption . | . . . . Corruption Purged . | . . . . Overload Shots . | . . . . Overflow Damage 16 | . . 16 . Projectiles 16 | . . 16 . Explosions . | . . . . Melee . | . . . . Knockbacks . | . . . . Impact . | . . . . Kinetic . | . . . . Secondary . | . . . . Self-Inflicted Damage 3 | . 2 . 1 Shots . | . . . . Rammed 2 | . 1 . 1 Targets Rammed 3 | . 2 . 1 Kicked 1 | . 1 . . Crushed . | . . . . Highest Temperature 451 | 36 90 451 288 Average Temperature 90 | 18 32 102 87 Received Heat Transfer 663 | . 48 174 441 Effects 11 | . . 11 . Shutdowns 1 | . . 1 . Energy Bleed 1 | . . 1 . Interference 5 | . . 5 . Short Circuit 1 | . . 1 . Damage (minor) 3 | . . 3 . Siege Activations . | . . . . Robots Corrupted . | . . . . Combat Hostiles . | . . . . Parts Fried . | . . . . Impact Corruptions . | . . . . Robots Melted . | . . . . Combat Hostiles . | . . . . Parts Melted 8 | . . 7 1 Heat Transferred 7464 | 225 650 5034 1555 Parts Sabotaged . | . . . . Parts Stolen . | . . . . Parts Stripped . | . . . . Power Chain Reactions . | . . . . Missiles Intercepted . | . . . . Alert | -11 -10 -9 -9 ------- Run | Scr Mat Mat Sto Peak Influence 488 | 10 129 488 195 Average Influence 251 | 2 52 329 149 Maximum Alert Level 2 | . . 2 . Low Security (%) 42 | 100 100 15 100 Level 1 26 | . . 39 . Level 2 30 | . . 45 . Level 3 . | . . . . Level 4 . | . . . . Level 5 . | . . . . High Security . | . . . . Max Security . | . . . . Squads Dispatched 9 | . 2 3 4 Investigation 5 | . 2 3 . Extermination . | . . . . Reinforcement 3 | . . . 3 Assault . | . . . . Garrison 1 | . . . 1 Intercept . | . . . . Construction Impeded . | . . . . Haulers Reinforced . | . . . . Stealth | -11 -10 -9 -9 --------- Run | Scr Mat Mat Sto Distress Signals 3 | . 1 2 . Communications Jammed . | . . . . Distress Signals . | . . . . Times Spotted 75 | . 10 43 22 Peak Tracking Total 11 | . 5 6 11 Tactical Retreats 6 | . . 5 1 Traps | -11 -10 -9 -9 ------- Run | Scr Mat Mat Sto Traps Triggered 1 | . . . 1 Indirectly . | . . . . Trap Hack Attempts . | . . . . Triggered . | . . . . Disarmed . | . . . . Reprogrammed . | . . . . Reused . | . . . . Traps Extracted . | . . . . Installed . | . . . . Triggered . | . . . . Machines | -11 -10 -9 -9 ---------- Run | Scr Mat Mat Sto Machines Disabled 2 | . . 2 . Max in Single Turn 1 | . . 1 . Machines Sabotaged . | . . . . Garrisons Compromised . | . . . . Overloaded Fab Kills . | . . . . Fab Network Shutdowns . | . . . . Hacking | -11 -10 -9 -9 --------- Run | Scr Mat Mat Sto Machines Accessed 13 | . 4 8 1 Terminals 9 | . 3 5 1 Fabricators . | . . . . Repair Stations 1 | . . 1 . Recycling Units 3 | . 1 2 . Scanalyzers . | . . . . Garrison Access . | . . . . Total Hacks 35 | . 12 22 1 Successful 22 | . 6 15 1 Failed 11 | . 5 6 . Catastrophic 1 | . 1 . . Database Lockouts 3 | . 1 2 . Manual 15 | . 10 5 . Terminals 30 | . 11 18 1 Fabricators . | . . . . Repair Stations 2 | . . 2 . Recycling Units 3 | . 1 2 . Scanalyzers . | . . . . Garrison Access . | . . . . Terminal Hacks 17 | . 5 11 1 Record 1 | . . 1 . Robot Analysis 3 | . 2 1 . Prototype ID Bank 3 | . 1 2 . Open Door 1 | . . . 1 Branch Access Points 1 | . . 1 . Recycling Unit Index 1 | . . 1 . Alert Level 1 | . . 1 . Unreport Threat 4 | . 1 3 . Surveillance Status 1 | . . 1 . Hauler Manifests 1 | . 1 . . Fabricator Hacks . | . . . . Repair Station Hacks 2 | . . 2 . Scan Component 1 | . . 1 . Repair 1 | . . 1 . Recycling Unit Hacks 3 | . 1 2 . Retrieve Components 3 | . 1 2 . Scanalyzer . | . . . . Garrison Access Hacks . | . . . . Unauthorized Hacks . | . . . . Terminals . | . . . . Fabricators . | . . . . Repair Stations . | . . . . Recycling Units . | . . . . Scanalyzers . | . . . . Garrison Access . | . . . . Data Cores Recovered . | . . . . Used . | . . . . Hacking Detections 9 | . 4 5 . Full Trace Events 4 | . 2 2 . Feedback Events . | . . . . Feedback Blocked . | . . . . Robot Schematics Acquired . | . . . . Robots Built . | . . . . Matter . | . . . . Time . | . . . . Total Robot Build Rating . | . . . . Part Schematics Acquired . | . . . . Parts Built . | . . . . Matter . | . . . . Time . | . . . . Total Part Build Rating . | . . . . Parts Repaired 1 | . . 1 . Time 26 | . . 26 . Parts Recycled . | . . . . Recycled Matter . | . . . . Retrieved Matter . | . . . . Retrieved Components 15 | . 3 12 . Parts Scanalyzed . | . . . . Part Schematics Acquired . | . . . . Parts Damaged . | . . . . Bothacking | -11 -10 -9 -9 ------------ Run | Scr Mat Mat Sto Used RIF Installer . | . . . . Robots Hacked . | . . . . Non-combat . | . . . . Combat . | . . . . Robot Hacks Applied . | . . . . Relay Couplers Released . | . . . . Robots Rewired . | . . . . Allies Hacked . | . . . . Hacks Repelled . | . . . . Allies | -11 -10 -9 -9 -------- Run | Scr Mat Mat Sto Total Allies . | . . . . Largest Group . | . . . . Highest-Rated Group . | . . . . Highest-Rated Ally . | . . . . Total Orders 2 | . . . 2 EXPLORE 2 | . . . 2 Ally Attacks . | . . . . Total Damage . | . . . . Kills . | . . . . Allies Corrupted . | . . . . Allies Melted . | . . . . Intel | -11 -10 -9 -9 ------- Run | Scr Mat Mat Sto Robot Analysis Total 3 | . 2 1 . Derelict Logs Recovered . | . . . . Drone Launches 16 | . . . 16 Drone Recoveries . | . . . . Exploration | -11 -10 -9 -9 ------------- Run | Scr Mat Mat Sto Turns Passed 1574 | 80 210 1074 210 Spaces Moved 801 | 54 123 556 68 Core 19 | 19 . . . Treads . | . . . . Legs 782 | 35 123 556 68 Wheels . | . . . . Hover . | . . . . Flight . | . . . . Fastest Speed 50 | 50 120 120 120 Average Speed 118 | 95 120 120 120 Slowest Speed 150 | 120 120 120 150 Overloaded Moves . | . . . . Propulsion Burnouts . | . . . . Robots Hopped . | . . . . Cave-ins Triggered . | . . . . Exploration Rate (%) 41 | 4 36 56 70 Regions Visited 3 Branch Regions 1 Pre-discovered Areas . | . . . . Known Exits Taken 1 | . . 1 . Unknown Exits Taken 2 | 1 1 . . Scrap Searched . | . . . . Spaces Dug . | . . . . Terrain Destroyed . | . . . . Melee . | . . . . Projectile . | . . . . AOE . | . . . . Actions | -11 -10 -9 -9 --------- Run | Scr Mat Mat Sto Total 1138 | 71 149 785 133 Wait 45 | . . 33 12 Move 799 | 53 123 555 68 Hop . | . . . . Pick Up 45 | 6 3 34 2 Fast Attach . | . . . . Attach 26 | 5 2 17 2 Detach . | . . . . Swap 12 | . 1 11 . Drop 29 | 1 1 27 . Fire 172 | 6 18 108 40 Melee . | . . . . Ram . | . . . . Kick 2 | . 1 . 1 Crush . | . . . . Escape Stasis . | . . . . Rewire . | . . . . Trap . | . . . . Miscellaneous 8 | . . . 8 Route ------- -11/Scrapyard -10/Materials (discovered 2 exits: *Mat / [*Min]) -9/Materials (discovered 3 exits: [*Mat] / *Min / *Sto) -9/Storage History --------- Turn | Location | Event 3 | -11/Scrapyard | Discovered new exit (range 15) 81 | -11/Scrapyard | Entered Materials 81 | -10/Materials | Discovered new exit (range 7) 258 | -10/Materials | Discovered new exit (range 9) 285 | -10/Materials | Central database locked down 291 | -10/Materials | Entered another Materials area 291 | -9/Materials | Evolved 2 slots: Utility x2 316 | -9/Materials | Build established: Mutant 329 | -9/Materials | Repaired Sml. Laser 469 | -9/Materials | Identified exit to Mines 469 | -9/Materials | Identified exit to Storage 853 | -9/Materials | Discovered new exit (range 18) 875 | -9/Materials | Build established: Scavenger-Mutant 963 | -9/Materials | Central database locked down 1365 | -9/Materials | Entered Storage 1519 | -9/Storage | Garrison activated, responded to threat 1557 | -9/Storage | Core integrity fell below 50% 1575 | -9/Storage | Self-destructed Last Messages --------------- 01536_ Lrg. Battery destroyed. 01537_ Slammed into Y-45 Defender. 01537_ Destabilizing: Short circuit. 01537_ Broken Visual Processing Unit permanently disabled. 01541_ Acquired Beam Rifle. 01546_ R-06 Scavenger destroyed. 01546_ Drone destroyed. 01548_ Y-45 Defender destroyed. 01550_ U-05 Engineer destroyed. 01551_ ALERT: Hostiles spotted, dispatching reinforcements to Terminal S016. 01554_ G-34 Mercenary destroyed. 01555_ Reflective Plating destroyed. 01556_ G-34 Mercenary destroyed. 01560_ Beam Rifle destroyed. 01563_ Acquired Sml. Laser. 01567_ G-34 Mercenary destroyed. 01572_ U-05 Engineer builds a Door. 01573_ Imp. Aluminum Leg destroyed. 01574_ Heat Sink destroyed. 01575_ Sml. Laser destroyed. Map ----- +----------------------------------------------------+ | ???????????????????????????## ### #??????# | | ???????????????????????????# ## ############ | | ???????????????????????????# T" % | | ???????????????????????????# " | | ?????????##########????????# % | | ?????????# #????????# #! ############ | | ??#####??# """" #????????#######%=#?????# | | ??#]]]#??# "??"" #??????????????#!*#?????# [ | | ??#]]]#??# "???"" #???#"##???????# ####### | | ??? ???# ""???" #???# T#???????# % +% | | ##? ???# ""??" #####+########## %= #! | | # ##+##### """" # # = | | # # + # + | | # "" # ### / ########%!####%############ | | # "T #%#?########## ## #[[####/########???? | | # "" + #?????"##### ## """ #%%#% % #???? | | # # #?????" ## """ #*%#! #???? | | # # #?????" ## """ #!%/%%* #???? | | # #%#?????"#T####### #[=#!%! #?### | | # ]]# #??????#???????# " #![#*= ###T# | | # ] # #??????????????# " #%!# ## | | ###### #??????????????# " #*=# ## # | | ?????# #??????????#???# #=|############## # | | ####?# #??????????#T#####+###=%##############+## | | # T?# #??????????" + !!ug%Y= !%*%! | | # # #??????????### =@%*g![% % !%= | | # # ############## =*==g*!%= ! !% | | # + ##"!"##################### | | # ####################"G"#????????????????#### | | ?##????????????????????#"""#???????????????????? | | ???????????????????????#####???????????????????? | | ???????????????????????????????????????????????? | | | | | | | | | | | | | | | | | | | | | | | | | | | | | | | | | | | | | +----------------------------------------------------+ Best States ------------- Heat Dissipation 38 Energy Generation 14 Energy Capacity 580 Matter Stores 300 Matter Capacity 300 Sight Range 18 Terrain Scan Density 10 Armor Coverage 150 Resistance: KI 20 Resistance: TH 30 Resistance: EX 20 Resistance: EM 20 Resistance: I 20 Resistance: S 20 Resistance: P 20 Evasion (%) 50 Targeting Accuracy 6 Offensive Hacking 10 Item Schematics ----------------- None Robot Schematics ------------------ None Fabricated ------------ Nothing Alien Tech Used ----------------- None Achievements -------------- None Challenges ------------ None Game ------ Seed NullDispersionWand Manual? 0 Play Time 00:14:08 Cumulative 315.0 hours Start 2020.08.11 @ 17:48:09 End 2020.08.11 @ 18:00:09 Sessions 1 Manual Loads 0 Difficulty Adventurer Special Mode None Game No. 114 Rogue 1 Adventurer 113 Explorer 0 Win Type - Total 1 Types 1/0/0/0/0/0/0 Lore% 34 Gallery% 63 Achievement% 47 Wizard Run 0 Options --------- ASCII 0 Keyboard 0 Movement Numpad Keybinds 0 Fullscreen 1 Font 12/Smallcaps Map View 83x54 Tactical HUD 1 Map Filters NONE Filters NONE Steam X RUN: 43fc8389-34a8-4ad9-9d8a-7a52bfb70952